bitfinex-derivatives/quotes_SOLF0:USTF0_20241229
["timestamp","ask_amount","ask_price","bid_price","bid_amount"]
[1735499900986,8.27156796,193.59,193.53,2.5883]
[1735499901891,2.5879,193.57,193.53,2.5883]
[1735499902086,8.27156796,193.59,193.52,2.9]
[1735499902295,8.27156796,193.59,193.54,2.5881]
[1735499902586,8.27156796,193.59,193.52,2.9]
[1735499902791,8.27156796,193.59,193.55,2.588]
[1735499903293,10.85916796,193.59,193.55,2.588]
[1735499903790,8.27156796,193.59,193.56,2.5878]
[1735499906297,8.27156796,193.59,193.54,2.5882]
[1735499907192,2.5877,193.58,193.54,2.5882]
[1735499909196,2.5879,193.57,193.54,2.5882]
[1735499909400,8.27156796,193.59,193.53,2.5883]
[1735499909891,2.5878,193.57,193.53,2.5883]
[1735499910090,2.5878,193.57,193.54,2.5881]
[1735499912205,2.5879,193.56,193.53,2.5883]
[1735499912399,8.27156796,193.57,193.49,8.27156796]
[1735499912594,8.27156796,193.55,193.49,2.9]
[1735499912997,8.27156796,193.55,193.48,2.9]
[1735499913300,8.27156796,193.53,193.47,6.92488635]
[1735499913700,2.5887,193.51,193.47,9.51388635]
[1735499915105,2.5887,193.51,193.47,6.92488635]
[1735499915401,2.5887,193.51,193.48,2.589]
[1735499924515,2.5885,193.52,193.48,2.589]
[1735499934516,10.85986796,193.53,193.5,2.5887]
[1735499934909,8.27156796,193.55,193.5,2.5887]
[1735499935106,2.5882,193.54,193.5,2.5887]
[1735499936516,2.5882,193.54,193.47,15.19645431]
[1735499936718,8.27156796,193.57,193.49,8.27156796]
[1735499937015,1.5403,193.58,193.49,8.27156796]
[1735499937016,9.81186796,193.58,193.49,8.27156796]
[1735499937210,2.5878,193.57,193.51,2.5885]
[1735499937412,2.5878,193.57,193.52,2.9]
[1735499938508,2.5878,193.57,193.54,2.5881]
[1735499940622,2.588,193.56,193.53,2.5883]
[1735499943122,2.588,193.56,193.52,5.4884]
[1735499943420,2.588,193.56,193.52,2.9]
[1735499944518,2.588,193.56,193.53,2.5883]
[1735499952826,3.02860712,193.59,193.52,2.9]
[1735499953928,5.61620712,193.59,193.55,2.588]
[1735499954826,2.5877,193.58,193.55,2.588]
[1735499957126,5.61620712,193.59,193.55,2.5879]
[1735499957523,5.61620712,193.59,193.52,11.17156796]
[1735499957929,3.02860712,193.59,193.52,11.17156796]
[1735499958233,3.02860712,193.59,193.56,2.5879]
[1735499959627,5.61610712,193.59,193.56,2.5879]
[1735499960530,3.02860712,193.59,193.56,2.5879]
[1735499961629,3.02860712,193.59,193.57,2.5877]
[1735499962633,11.30017508,193.59,193.55,2.588]
[1735499963025,13.88767508,193.59,193.55,2.588]
[1735499964537,5.61610712,193.59,193.55,2.588]
[1735499968136,2.5877,193.58,193.55,2.588]
[1735499968732,3.02860712,193.59,193.53,2.9]
[1735499968733,2.5879,193.56,193.53,2.9]
[1735499969839,2.5879,193.56,193.52,5.4883]
[1735499974235,2.5881,193.55,193.52,5.4883]
[1735499974440,8.27156796,193.57,193.51,2.9]
[1735499975540,8.27156796,193.57,193.5,2.5886]
[1735499975837,8.27156796,193.57,193.5,5.4886]
[1735499976439,2.5883,193.53,193.5,5.4886]
[1735499978437,2.5882,193.54,193.5,5.4886]
[1735499982947,2.5882,193.54,193.5,2.5886]
[1735499985953,2.5882,193.54,193.49,11.17156796]
[1735499986150,2.5882,193.54,193.51,2.5885]
[1735499989148,2.5885,193.52,193.49,2.9]
[1735499990556,2.5885,193.52,193.49,5.4887]
[1735499992453,2.5884,193.53,193.49,5.4887]
[1735499992653,8.27156796,193.56,193.5,2.5886]
[1735499993051,2.5882,193.54,193.5,2.5886]
[1735500004866,69.75452445,193.58,193.49,2.9]
[1735500005170,2.5879,193.56,193.53,2.5883]
[1735500005364,69.75452445,193.58,193.49,11.17156796]
[1735500005566,57.66926787,193.58,193.53,8.27156796]
[1735500005869,57.66926787,193.58,193.54,2.9]
[1735500006372,57.66926787,193.58,193.55,2.588]
[1735500006769,5.61610712,193.59,193.55,2.588]
[1735500007070,2.5877,193.58,193.55,2.588]
[1735500010474,5.61610712,193.59,193.55,2.588]
[1735500014874,5.61610712,193.59,193.54,2.9]
[1735500014875,3.02860712,193.59,193.56,2.5878]
[1735500016679,2.5874,193.6,193.57,2.5877]
[1735500018582,8.27156796,193.61,193.54,2.9]
[1735500018782,10.85886796,193.61,193.58,2.5876]
[1735500019779,8.27156796,193.61,193.58,2.5876]
[1735500020079,55.85508938,193.65,193.6,2.5874]
[1735500020279,10.85856796,193.63,193.6,2.5874]
[1735500020580,55.85508938,193.65,193.59,11.17156796]
[1735500020773,2.5869,193.64,193.61,2.5871]
[1735500020977,55.85508938,193.65,193.6,2.9]
[1735500021183,54.24798938,193.65,193.63,2.5869]
[1735500021984,10.85826796,193.66,193.63,2.5869]
[1735500022985,10.85826796,193.66,193.62,2.5871]
[1735500023180,2.5867,193.66,193.62,2.5871]
[1735500024875,2.5867,193.66,193.62,10.85866796]
[1735500025077,2.5867,193.66,193.62,8.27156796]
[1735500025277,2.5867,193.66,193.63,2.587]
[1735500026586,2.5864,193.68,193.64,10.85836796]
[1735500027489,2.5862,193.69,193.66,2.5865]
[1735500027786,57.66926787,193.73,193.66,8.27156796]
[1735500028091,4.36119426,193.74,193.68,2.5862]
[1735500028092,2.5859,193.72,193.68,2.5862]
[1735500028791,2.5859,193.71,193.68,2.5862]
[1735500029293,70.30203009,193.74,193.66,8.27156796]
[1735500029294,8.27156796,193.72,193.66,8.27156796]
[1735500029591,8.27156796,193.68,193.65,2.9]
[1735500030592,2.5865,193.67,193.65,2.9]
[1735500033196,8.27156796,193.7,193.65,2.9]
[1735500033392,2.5866,193.66,193.65,2.9]
[1735500033994,2.5865,193.67,193.65,2.9]
[1735500036197,2.5863,193.68,193.65,5.4867]
[1735500036393,1.4889,193.72,193.65,2.9]
[1735500036695,9.76046796,193.72,193.65,2.9]
[1735500037188,2.5862,193.69,193.66,2.5866]
[1735500038797,2.5862,193.69,193.65,5.4867]
[1735500038994,2.5863,193.68,193.65,2.9]
[1735500040891,2.5863,193.68,193.65,5.4867]
[1735500052706,2.5862,193.69,193.66,2.5865]
[1735500053210,8.27156796,193.7,193.65,2.9]
[1735500053413,9.76046796,193.72,193.65,11.17156796]
[1735500054503,2.5861,193.7,193.67,2.5864]
[1735500059704,8.27156796,193.7,193.55,6.7244]
[1735500059906,8.27156796,193.7,193.62,8.27156796]
[1735500060108,2.5864,193.68,193.64,2.5867]
[1735500060408,2.5864,193.68,193.64,8.27156796]
[1735500060609,8.27156796,193.71,193.63,2.9]
[1735500060910,2.5865,193.67,193.63,2.9]
[1735500061403,2.5865,193.67,193.64,2.5868]
[1735500061911,2.5866,193.66,193.63,2.9]
[1735500062211,8.27156796,193.67,193.55,1.5485]
[1735500062416,8.27156796,193.65,193.56,4.02785808]
[1735500062705,8.27156796,193.63,193.57,2.9]
[1735500062912,8.27156796,193.61,193.57,2.9]
[1735500063113,2.5874,193.6,193.57,2.9]
[1735500067914,2.5874,193.6,193.55,10.85956796]
[1735500068113,2.5874,193.6,193.55,11.17156796]
[1735500068310,2.5874,193.6,193.56,2.5879]
[1735500070814,2.5874,193.6,193.56,5.4879]
[1735500071914,8.27156796,193.61,193.56,5.4879]
[1735500071915,8.27156796,193.61,193.56,2.9]
[1735500072117,8.27156796,193.61,193.52,1.5054]
[1735500072316,8.27156796,193.61,193.54,2.9]
[1735500072616,2.5877,193.58,193.54,2.9]
[1735500073016,8.27156796,193.61,193.54,2.9]
[1735500073317,8.27156796,193.59,193.53,2.9]
[1735500073618,8.27156796,193.57,193.53,2.9]
[1735500074417,2.5881,193.55,193.53,2.9]
[1735500074715,2.5881,193.55,193.52,2.5884]
[1735500074915,2.5884,193.52,193.51,3.94708253]
[1735500075220,2.5884,193.52,193.48,2.9]
[1735500075919,8.27156796,193.53,193.46,8.27156796]
[1735500076116,8.27156796,193.53,193.46,11.17156796]
[1735500076521,2.5888,193.5,193.46,13.76076796]
[1735500076818,2.5888,193.5,193.46,2.5892]
[1735500083918,8.27156796,193.51,193.45,11.17156796]
[1735500084119,2.91721482,193.58,193.49,2.5888]
[1735500084421,8.27156796,193.56,193.49,8.27156796]
[1735500084620,2.5881,193.55,193.51,2.5885]
[1735500085925,4.6144,193.62,193.54,8.27156796]
[1735500086325,2.5875,193.59,193.53,2.5883]
[1735500086525,2.5875,193.59,193.53,8.27156796]
[1735500088422,2.5875,193.59,193.54,2.5881]
[1735500090225,2.5878,193.58,193.54,2.5881]
[1735500090421,8.27156796,193.58,193.51,8.27156796]
[1735500091234,10.85956796,193.56,193.51,2.5885]
[1735500091426,8.27156796,193.54,193.4,3.1817]
[1735500091622,8.27156796,193.52,193.45,8.27156796]
[1735500091821,8.27156796,193.52,193.46,2.9]
[1735500092537,2.5886,193.51,193.46,5.4891]
[1735500093531,8.27156796,193.52,193.49,2.5888]
[1735500093735,8.27156796,193.55,193.47,8.27156796]
[1735500094332,10.85966796,193.55,193.49,2.5888]
[1735500094638,10.85966796,193.55,193.47,8.27156796]
[1735500095439,8.27156796,193.55,193.5,2.5886]
[1735500095641,2.5882,193.54,193.5,2.5886]
[1735500096339,8.27156796,193.55,193.47,8.27156796]
[1735500097032,8.27156796,193.55,193.49,8.27156796]
[1735500097834,10.85956796,193.55,193.5,2.5886]
[1735500098034,11.30061037,193.57,193.49,8.27156796]
[1735500098336,11.30061037,193.57,193.51,11.17156796]
[1735500098942,11.30061037,193.57,193.53,2.5883]
[1735500099539,2.5882,193.54,193.51,2.9]
[1735500100943,2.5883,193.53,193.51,2.9]
[1735500101441,8.27156796,193.55,193.51,2.9]
[1735500102438,2.5882,193.54,193.51,2.9]
[1735500103143,8.27156796,193.55,193.51,2.9]
[1735500103345,2.5881,193.55,193.51,5.4886]
[1735500108947,2.5881,193.55,193.51,2.9]
[1735500109150,2.5881,193.55,193.52,2.5884]
[1735500111350,2.5879,193.56,193.52,2.5884]
[1735500115652,2.5879,193.56,193.51,2.9]
[1735500115847,2.5879,193.56,193.53,2.5883]
[1735500117447,3.02904241,193.57,193.52,8.27156796]
[1735500117642,8.27156796,193.59,193.52,8.27156796]
[1735500117845,8.27156796,193.59,193.56,2.5878]
[1735500120753,8.27156796,193.61,193.54,8.27156796]
[1735500121752,10.85886796,193.61,193.57,2.5877]
[1735500122256,8.27156796,193.61,193.54,8.27156796]
[1735500123558,2.5875,193.6,193.57,2.5878]
[1735500127365,10.85916796,193.59,193.55,2.588]
[1735500129662,10.85916796,193.59,193.56,2.5879]
[1735500131771,8.27156796,193.59,193.54,2.94]
[1735500132066,2.5877,193.58,193.54,2.94]
[1735500133484,2.5877,193.58,193.55,2.588]
[1735500134262,8.27156796,193.59,193.55,2.588]
[1735500134469,10.85906796,193.59,193.55,2.588]
[1735500140670,2.5877,193.58,193.55,2.588]
[1735500143667,8.27156796,193.59,193.54,2.94]
[1735500143870,8.27156796,193.55,193.52,2.5883]
[1735500144266,8.27156796,193.55,193.5,2.9]
[1735500144471,8.27156796,193.53,193.48,6.92511434]
[1735500144672,2.9,193.62,193.48,4.02511434]
[1735500144673,8.27156796,193.51,193.48,4.02511434]
[1735500144868,8.27156796,193.51,193.46,2.9]
[1735500145878,2.5887,193.5,193.46,5.4891]
[1735500151979,2.5887,193.5,193.47,2.5891]
[1735500154276,1.6085,193.55,193.48,2.5889]
[1735500154478,8.27156796,193.54,193.48,2.5889]
[1735500154878,2.5884,193.53,193.49,2.5887]
[1735500155775,2.5885,193.52,193.49,2.5887]
[1735500160883,2.5885,193.52,193.47,8.27156796]
[1735500161082,2.5885,193.52,193.48,2.5889]
[1735500162978,2.5885,193.52,193.47,8.27156796]
[1735500163176,2.5885,193.52,193.49,2.5888]
[1735500163582,2.5885,193.52,193.48,2.5889]
[1735500167089,2.5885,193.52,193.49,2.5889]
[1735500167286,2.5888,193.52,193.49,2.5889]
[1735500167884,2.5888,193.52,193.47,8.27156796]
[1735500168091,2.5888,193.52,193.48,2.5892]
[1735500171901,8.27156796,193.53,193.46,2.9]
[1735500172099,2.5891,193.49,193.46,2.9]
[1735500173201,2.5891,193.49,193.46,5.4895]
[1735500176204,8.27156796,193.51,193.46,2.9]
[1735500176505,2.5888,193.52,193.48,2.5892]
[1735500176808,8.27156796,193.52,193.48,2.5892]
[1735500177002,2.5889,193.51,193.48,2.5892]
[1735500181009,2.5889,193.51,193.47,2.5893]
[1735500182105,8.27156796,193.52,193.46,2.9]
[1735500182312,2.5891,193.49,193.46,2.9]
[1735500184407,2.5891,193.49,193.45,2.5895]
[1735500184614,2.5891,193.49,193.45,5.4895]
[1735500186813,2.5891,193.49,193.46,2.5895]
[1735500188713,2.5887,193.52,193.47,8.27156796]
[1735500189111,8.27156796,193.5,193.45,2.9]
[1735500190418,2.5891,193.49,193.46,2.5895]
[1735500190714,8.27156796,193.5,193.46,2.5895]
[1735500192519,10.86056796,193.5,193.46,2.5895]
[1735500193219,2.589,193.5,193.46,2.5895]
[1735500205729,10.86056796,193.5,193.46,2.5895]
[1735500209830,8.27156796,193.48,193.42,4.0263978]
[1735500210132,8.27156796,193.44,193.42,4.0263978]
[1735500210930,2.5899,193.43,193.39,5.4903]
[1735500212838,2.5899,193.43,193.39,2.5903]
[1735500213136,2.5899,193.43,193.4,2.5903]
[1735500214739,10.86136796,193.44,193.4,2.5903]
[1735500216935,8.27156796,193.44,193.35,4.02788165]
[1735500217140,10.86166796,193.42,193.39,2.9]
[1735500218238,10.86166796,193.42,193.37,2.9]
[1735500218432,2.5904,193.4,193.37,2.9]
[1735500218736,2.5904,193.4,193.36,2.9]
[1735500218937,2.5904,193.4,193.35,4.02788165]
[1735500219244,10.86196796,193.4,193.36,5.4908]
[1735500220642,10.86196796,193.4,193.36,2.5908]
[1735500221437,3.0463,193.46,193.35,6.92788165]
[1735500221646,8.27156796,193.43,193.36,8.27156796]
[1735500222142,8.27156796,193.45,193.38,8.27156796]
[1735500222539,10.86126796,193.45,193.4,2.5903]
[1735500222844,10.86126796,193.45,193.4,5.4903]
[1735500224639,8.27156796,193.45,193.4,5.4903]
[1735500224847,10.86146796,193.43,193.4,2.9]
[1735500225644,2.5899,193.43,193.4,2.9]
[1735500225843,10.86146796,193.43,193.4,2.9]
[1735500228447,8.27156796,193.43,193.4,5.4903]
[1735500232352,8.27156796,193.43,193.41,2.5901]
[1735500235959,180.29245686,193.63,193.4,2.9]
[1735500236154,8.27156796,193.47,193.41,8.27156796]
[1735500236553,8.27156796,193.47,193.44,2.5897]
[1735500236749,2.5892,193.49,193.44,2.5897]
[1735500236949,10.86076796,193.49,193.44,2.5897]
[1735500237458,10.86076796,193.49,193.45,2.5896]
[1735500238456,10.86076796,193.49,193.41,8.27156796]
[1735500238962,8.27156796,193.49,193.43,8.27156796]
[1735500241064,8.27156796,193.49,193.46,2.5894]
[1735500241260,8.27156796,193.49,193.46,5.4894]
[1735500243766,8.27156796,193.49,193.43,8.27156796]
[1735500244067,8.27156796,193.49,193.45,2.5896]
[1735500245263,2.5894,193.48,193.44,5.4897]
[1735500245469,8.27156796,193.47,193.44,5.4897]
[1735500246468,10.86096796,193.47,193.44,5.4897]
[1735500246969,2.5898,193.44,193.41,2.5902]
[1735500247164,8.27156796,193.43,193.4,2.9]
[1735500248468,8.27156796,193.43,193.4,5.4902]
[1735500249261,8.27156796,193.41,193.35,4.02788165]
[1735500249466,8.27156796,193.39,193.36,2.9]
[1735500250278,2.5904,193.4,193.36,5.4908]
[1735500252473,2.5904,193.4,193.36,2.5908]
[1735500252674,2.5904,193.4,193.36,5.4908]
[1735500260279,8.27156796,193.39,193.36,5.4908]
[1735500272799,2.5903,193.4,193.36,5.4908]
[1735500273195,57.58075016,193.51,193.38,8.27156796]
[1735500273401,57.58075016,193.51,193.48,8.27156796]
[1735500273594,57.58075016,193.51,193.48,11.17156796]
[1735500274398,152.22344337,193.56,193.48,13.76066796]
[1735500274399,2.5885,193.54,193.48,13.76066796]
[1735500276898,2.5887,193.52,193.48,2.9]
[1735500278503,8.27156796,193.51,193.39,3.2112]
[1735500278694,10.86046796,193.51,193.4,2.9]
[1735500278889,10.86046796,193.51,193.43,8.27156796]
[1735500279095,8.27156796,193.51,193.43,8.27156796]
[1735500279297,2.589,193.5,193.43,8.27156796]
[1735500280099,2.589,193.5,193.45,2.5895]
[1735500280301,2.589,193.5,193.45,5.4895]
[1735500288699,2.589,193.5,193.46,2.5895]
[1735500299313,2.589,193.5,193.45,2.9]
[1735500299513,2.589,193.5,193.47,2.5894]
[1735500311727,57.58075016,193.56,193.46,8.27156796]
[1735500311924,8.27156796,193.55,193.46,11.29846796]
[1735500312124,2.5885,193.54,193.5,2.5888]
[1735500312421,2.5885,193.54,193.5,5.4888]
[1735500317630,2.5885,193.54,193.51,2.5888]
[1735500317933,10.85986796,193.55,193.5,2.9]
[1735500319430,2.5881,193.57,193.54,2.5884]
[1735500319626,10.85966796,193.57,193.54,2.5884]
[1735500320329,8.27156796,193.57,193.54,2.5884]
[1735500323737,2.5882,193.56,193.53,5.4885]
[1735500323928,2.5882,193.56,193.52,2.9]
[1735500325335,2.5882,193.56,193.52,5.4886]
[1735500325536,2.5887,193.53,193.38,5.1811]
[1735500325731,10.86026796,193.53,193.47,8.27156796]
[1735500325929,10.86026796,193.53,193.48,2.9]
[1735500326436,10.86026796,193.53,193.49,2.5891]
[1735500328131,2.5887,193.53,193.49,2.5891]
[1735500330236,2.5887,193.53,193.5,2.9]
[1735500332138,2.5888,193.51,193.46,2.5895]
[1735500332443,8.27156796,193.53,193.47,2.9]
[1735500333040,2.5891,193.49,193.47,2.9]
[1735500339047,2.589,193.5,193.47,2.9]
[1735500341242,8.27156796,193.53,193.47,2.9]
[1735500341442,66.23031667,193.54,193.47,11.17156796]
[1735500341642,57.58075016,193.54,193.47,11.17156796]
[1735500342245,8.27156796,193.53,193.47,11.17156796]
[1735500342446,10.86026796,193.53,193.49,2.589]
[1735500345158,2.5887,193.52,193.49,2.589]
[1735500355866,2.589,193.5,193.49,2.9]
[1735500356258,8.27156796,193.51,193.45,2.9]
[1735500356458,2.5892,193.49,193.45,5.4896]
[1735500357165,2.5893,193.48,193.45,5.4896]
[1735500357860,2.5894,193.47,193.44,5.4898]
[1735500359658,2.5894,193.47,193.44,2.5898]
[1735500359967,2.5894,193.47,193.44,5.4898]
[1735500360870,2.5893,193.48,193.44,5.4898]
[1735500363867,2.5893,193.48,193.44,2.9]
[1735500364067,2.5893,193.48,193.45,2.5896]
[1735500366270,2.5895,193.47,193.44,2.9]
[1735500367769,2.5895,193.47,193.43,2.5899]
[1735500367973,2.5895,193.47,193.43,5.4899]
[1735500373875,2.5895,193.47,193.44,2.5898]
[1735500377372,8.27156796,193.45,193.29,22.71042086]
[1735500377576,8.27156796,193.41,193.33,4.6462]
[1735500377773,8.27156796,193.39,193.33,3.0705]
[1735500378073,8.27156796,193.37,193.29,7.17042086]
[1735500378283,8.27156796,193.35,193.3,2.9]
[1735500378573,8.27156796,193.35,193.29,15.44198882]
[1735500378778,8.27156796,193.35,193.3,2.9]
[1735500379173,8.27156796,193.35,193.32,2.5913]
[1735500381875,2.5907,193.37,193.32,2.5913]
[1735500382176,2.5907,193.37,193.33,2.5912]
[1735500382177,8.27156796,193.36,193.33,2.5912]
[1735500383377,4.764,193.43,193.3,2.9]
[1735500383378,2.5902,193.42,193.36,2.5907]
[1735500383677,8.27156796,193.41,193.34,8.27156796]
[1735500383881,8.27156796,193.41,193.35,2.9]
[1735500384872,8.27156796,193.41,193.38,2.5905]
[1735500385680,8.27156796,193.41,193.35,2.9]
[1735500385890,2.85523972,193.44,193.38,8.27156796]
[1735500386482,2.85523972,193.44,193.42,2.5899]
[1735500390286,8.27156796,193.43,193.42,2.5899]
[1735500395194,8.27156796,193.43,193.41,2.5901]
[1735500396090,10.86176796,193.42,193.38,2.5906]
[1735500397888,8.27156796,193.42,193.38,2.5906]
[1735500398094,2.5903,193.41,193.37,5.4907]
[1735500400897,2.85523972,193.44,193.35,3.79431386]
[1735500401098,8.27156796,193.38,193.35,3.79431386]
[1735500401301,8.27156796,193.36,193.35,3.79431386]
[1735500401805,10.86256796,193.36,193.32,5.4914]
[1735500406202,10.86256796,193.36,193.32,2.5914]
[1735500407402,2.5912,193.34,193.3,5.4915]
[1735500407702,10.86276796,193.34,193.3,5.4915]
[1735500408992,10.86276796,193.34,193.3,2.5915]
[1735500409200,2.5913,193.33,193.3,2.5915]
[1735500409395,2.5913,193.33,193.28,2.9]
[1735500409599,2.5913,193.33,193.28,5.4918]
[1735500410199,2.5913,193.33,193.29,2.5918]
[1735500415299,8.27156796,193.34,193.27,2.9]
[1735500415604,8.27156796,193.35,193.32,2.5914]
[1735500418808,10.86256796,193.35,193.32,2.5914]
[1735500419506,8.27156796,193.35,193.34,2.5911]
[1735500420006,8.27156796,193.35,193.27,2.9]
[1735500420203,8.27156796,193.35,193.33,2.5912]
[1735500426511,10.86256796,193.35,193.32,2.5914]
[1735500426712,8.27156796,193.33,193.28,2.9]
[1735500427510,10.86296796,193.33,193.29,2.5917]
[1735500429316,10.86296796,193.33,193.24,3.78653236]
[1735500429317,8.27156796,193.31,193.27,2.592]
[1735500429516,8.27156796,193.31,193.27,5.492]
[1735500429820,10.86306796,193.31,193.27,5.492]
[1735500432217,10.86306796,193.31,193.28,2.5919]
[1735500434414,2.5915,193.31,193.28,2.5919]
[1735500434719,10.86306796,193.31,193.28,2.5919]
[1735500435418,8.27156796,193.31,193.28,2.5919]
[1735500436921,10.86306796,193.31,193.28,2.5919]
[1735500439023,8.27156796,193.31,193.28,2.5919]
[1735500440123,8.27156796,193.31,193.29,2.5917]
[1735500440620,62.14415016,193.36,193.27,2.9]
[1735500440816,8.27156796,193.34,193.27,11.17156796]
[1735500441525,8.27156796,193.34,193.32,2.5913]
[1735500442526,8.27156796,193.34,193.31,2.5915]
[1735500442724,8.27156796,193.32,193.31,2.5915]
[1735500451826,8.27156796,193.33,193.31,2.5915]
[1735500455035,8.27156796,193.33,193.3,2.5916]
[1735500455234,8.27156796,193.31,193.24,3.78653236]
[1735500455430,8.27156796,193.31,193.25,6.97547106]
[1735500455630,8.27156796,193.31,193.25,2.9]
[1735500457033,8.27156796,193.29,193.27,2.5919]
[1735500458632,10.86346796,193.29,193.25,2.5922]
[1735500458837,8.27156796,193.27,193.25,2.5922]
[1735500461741,8.27156796,193.27,193.26,2.5922]
[1735500468251,8.27156796,193.27,193.24,9.27883236]
[1735500469051,8.27156796,193.27,193.25,2.5923]
[1735500470050,8.27156796,193.27,193.26,2.5922]
[1735500481465,13.60895937,193.33,193.24,3.78653236]
[1735500481665,8.27156796,193.3,193.24,3.78653236]
[1735500481961,8.27156796,193.3,193.29,2.5918]
[1735500487773,2.5914,193.32,193.29,2.5918]
[1735500487970,8.27156796,193.3,193.29,2.5918]
[1735500506189,69.68503245,193.33,193.32,2.5914]
[1735500506899,65.85231812,193.34,193.33,2.5912]
[1735500507589,65.85231812,193.34,193.32,2.5914]
[1735500507786,8.27156796,193.33,193.28,2.9]
[1735500508596,8.27156796,193.33,193.31,2.5915]
[1735500509792,57.58075016,193.36,193.28,2.9]
[1735500509988,65.85231812,193.36,193.29,8.27156796]
[1735500510499,57.58075016,193.36,193.29,8.27156796]
[1735500510796,8.27156796,193.36,193.29,8.27156796]
[1735500511396,8.27156796,193.36,193.34,2.591]
[1735500514194,8.27156796,193.36,193.32,2.5913]
[1735500514394,8.27156796,193.34,193.28,2.9]
[1735500514996,8.27156796,193.34,193.31,2.5915]
[1735500516004,10.86266796,193.34,193.31,2.5915]
[1735500518106,8.27156796,193.34,193.31,2.5915]
[1735500524204,2.5908,193.37,193.29,8.27156796]
[1735500524409,8.27156796,193.38,193.29,8.27156796]
[1735500524603,8.27156796,193.36,193.29,1.5668]
[1735500524803,8.27156796,193.36,193.29,9.83836796]
[1735500525203,8.27156796,193.36,193.34,2.591]
[1735500526708,2.5906,193.38,193.34,2.591]
[1735500526909,2.5906,193.38,193.35,2.5909]
[1735500527206,8.27156796,193.37,193.35,2.5909]
[1735500530308,8.27156796,193.37,193.36,2.5908]
[1735500540307,2.5904,193.39,193.36,2.5908]
[1735500540512,8.27156796,193.38,193.36,2.5908]
[1735500546515,8.27156796,193.38,193.3,1.5553]
[1735500546718,8.27156796,193.33,193.31,2.9]
[1735500550922,8.27156796,193.33,193.3,2.5916]
[1735500553422,8.27156796,193.33,193.28,2.9]
[1735500553618,8.27156796,193.33,193.31,2.5915]
[1735500557926,8.27156796,193.35,193.28,2.9]
[1735500558324,8.27156796,193.33,193.28,2.9]
[1735500559524,8.27156796,193.33,193.31,2.5915]
[1735500560422,8.27156796,193.33,193.26,2.3932746]
[1735500560627,5.48378774,193.37,193.26,2.3932746]
[1735500560628,8.27156796,193.3,193.26,2.3932746]
[1735500561327,8.27156796,193.3,193.27,2.592]
[1735500565433,2.5916,193.31,193.26,2.3932746]
[1735500565640,8.27156796,193.28,193.19,4.4736]
[1735500565940,8.27156796,193.25,193.19,4.4736]
[1735500568241,8.27156796,193.25,193.2,2.9]
[1735500569448,10.86386796,193.25,193.21,2.5928]
[1735500574747,8.27156796,193.25,193.2,2.9]
[1735500574949,1.5445,193.3,193.2,2.9]
[1735500575246,8.27156796,193.27,193.2,2.9]
[1735500576448,8.27156796,193.27,193.24,2.5923]
[1735500579250,8.27156796,193.29,193.21,8.27156796]
[1735500579844,8.27156796,193.29,193.23,2.5925]
[1735500580043,8.27156796,193.29,193.21,8.27156796]
[1735500580554,8.27156796,193.29,193.27,2.5921]
[1735500582251,8.27156796,193.29,193.21,8.27156796]
[1735500582456,8.27156796,193.29,193.26,2.5921]
[1735500588956,8.27156796,193.29,193.27,2.592]
[1735500592958,4.1118,193.31,193.28,2.5919]
[1735500593165,8.27156796,193.29,193.28,2.5919]
[1735500594061,2.5913,193.33,193.3,2.5917]
[1735500594265,8.27156796,193.33,193.25,11.17156796]
[1735500594964,8.27156796,193.33,193.27,2.592]
[1735500595162,8.27156796,193.33,193.25,11.17156796]
[1735500595567,8.27156796,193.33,193.31,2.5915]
[1735500602569,8.27156796,193.33,193.3,2.5916]
[1735500603469,8.27156796,193.33,193.25,11.17156796]
[1735500603670,8.27156796,193.31,193.29,2.5917]
[1735500605772,8.27156796,193.31,193.28,2.5919]
[1735500605969,8.27156796,193.29,193.26,2.9]
[1735500606169,8.27156796,193.29,193.21,8.27156796]